fUSD/lending_fUSD_20240923
["ID","MTS","AMOUNT","RATE_DAILY","PERIOD"]
[338955929,1727089852940,-500.0,0.00012989,2]
[338955930,1727089852951,-500.0,0.00012989,2]
[338955931,1727089852963,-500.0,0.00012989,2]
[338955932,1727089852972,-515.0,0.00012989,2]
[338955933,1727089852982,-500.0,0.00012989,2]
[338955934,1727089852992,-624.43,0.00012989,2]
[338955935,1727089853002,-530.8,0.00012989,2]
[338955936,1727089853014,-500.0,0.00012989,2]
[338955937,1727089853023,-895.24,0.00012989,2]
[338955938,1727089853033,-500.0,0.00012989,2]
[338955939,1727089853042,-500.0,0.00012989,2]
[338955940,1727089853054,-500.0,0.00012989,2]
[338955941,1727089853065,-500.0,0.00012989,2]
[338955942,1727089853074,-1192.12,0.00012989,2]
[338955943,1727089853085,-500.0,0.00012989,2]
[338955944,1727089853095,-12048.2929672,0.00012989,2]
[338955945,1727089853106,-1002.01,0.00012989,2]
[338955946,1727089853117,-810.2,0.00012989,2]
[338955947,1727089853126,-500.0,0.00012989,2]
[338955948,1727089853139,-500.0,0.00012989,2]
[338955949,1727089853150,-500.0,0.00012989,2]
[338955950,1727089853161,-1542.18,0.00012989,2]
[338955951,1727089853171,-1688.58,0.00012989,2]
[338955952,1727089853180,-633.41,0.00012989,2]
[338955953,1727089853190,-2354.99,0.00012989,2]
[338955954,1727089853199,-941.99,0.00012989,2]
[338955955,1727089853208,-839.9,0.00012989,2]
[338955956,1727089853218,-500.0,0.00012989,2]
[338955957,1727089853227,-3116.47,0.00012989,2]
[338955958,1727089853236,-1717.45,0.00012989,2]
[338955959,1727089853246,-1811.84,0.00012989,2]
[338955960,1727089853255,-10115.12,0.00012989,2]
[338955961,1727089853266,-500.0,0.00012989,2]
[338955962,1727089853276,-2081.9,0.00012989,2]
[338955963,1727089853286,-2657.57,0.00012989,2]
[338955964,1727089853295,-500.0,0.00012989,2]
[338955965,1727089853305,-500.0,0.00012989,2]
[338955966,1727089853314,-500.0,0.00012989,2]
[338955967,1727089853324,-500.0,0.00012989,2]
[338955968,1727089853333,-2340.85,0.00012989,2]
[338955969,1727089853343,-500.0,0.00012989,2]
[338955970,1727089853352,-152.80753997,0.00012989,2]
[338955971,1727089853361,-500.0,0.00012989,2]
[338955972,1727089853371,-500.0,0.00012989,2]
[338955973,1727089853380,-500.0,0.00012989,2]
[338955974,1727089853390,-500.0,0.00012989,2]
[338955975,1727089853399,-668.0,0.0001299,2]
[338955976,1727089853409,-2269.0,0.0001299,2]
[338955977,1727089853418,-263.705162,0.0001299,2]
[338955978,1727089853428,-151.0,0.0001299,2]
[338955979,1727089853438,-263.27056973,0.0001299,2]
[338955980,1727089853447,-501.01319072,0.0001299,2]
[338955981,1727089853458,-151.0,0.0001299,2]
[338955982,1727089853468,-500.0,0.0001299,2]
[338955983,1727089853477,-500.0,0.0001299,2]
[338955984,1727089853487,-500.0,0.0001299,2]
[338955985,1727089853500,-456.02943211,0.0001299,2]
[338955986,1727089853510,-500.0,0.0001299,2]
[338955987,1727089853522,-500.0,0.0001299,2]
[338955988,1727089853531,-500.0,0.0001299,2]
[338955989,1727089853542,-500.0,0.0001299,2]
[338955990,1727089853552,-203.37928568,0.0001299,2]
[338955991,1727089853561,-502.71533926,0.0001299,2]
[338955992,1727089853573,-500.0,0.0001299,2]
[338955993,1727089853584,-202.0372174,0.0001299,2]
[338955994,1727089853594,-500.0,0.0001299,2]
[338955995,1727089853603,-542.03,0.0001299,2]
[338955996,1727089853612,-532.94948836,0.0001299,2]
[338955997,1727089853622,-500.0,0.0001299,2]
[338955998,1727089853632,-500.0,0.0001299,2]
[338955999,1727089853641,-500.0,0.0001299,2]
[338956000,1727089853651,-492.42537305,0.0001299,2]
[338956001,1727089853660,-526.22673673,0.0001299,2]
[338956002,1727089853670,-500.0,0.0001299,2]
[338956003,1727089853679,-500.83403962,0.0001299,2]
[338956004,1727089853689,-500.0,0.0001299,2]
[338956005,1727089853699,-500.0,0.0001299,2]
[338956006,1727089853708,-500.0,0.0001299,2]
[338956007,1727089853720,-1170.43,0.0001299,2]
[338956008,1727089853729,-1170.43,0.0001299,2]
[338956009,1727089853738,-1167.25,0.0001299,2]
[338956010,1727089853747,-1167.25,0.0001299,2]
[338956011,1727089853756,-500.0,0.0001299,2]
[338956012,1727089853766,-716.75,0.0001299,2]
[338956013,1727089853775,-716.75,0.0001299,2]
[338956014,1727089853785,-500.0,0.0001299,2]
[338956015,1727089853795,-500.0,0.0001299,2]
[338956016,1727089853804,-500.0,0.0001299,2]
[338956017,1727089853814,-500.0,0.0001299,2]
[338956018,1727089853823,-500.0,0.0001299,2]
[338956019,1727089853832,-628.36,0.0001299,2]
[338956020,1727089853841,-500.0,0.0001299,2]
[338956021,1727089853850,-628.36,0.0001299,2]
[338956022,1727089853859,-500.0,0.0001299,2]
[338956023,1727089853868,-500.64021771,0.0001299,2]
[338956024,1727089853877,-500.0,0.0001299,2]
[338956025,1727089853887,-500.0,0.0001299,2]
[338956026,1727089853896,-1534.34,0.0001299,2]
[338956027,1727089853905,-573.23523557,0.0001299,2]
[338956028,1727089853914,-500.0,0.0001299,2]
[338956029,1727089853923,-500.0,0.0001299,2]
[338956030,1727089853933,-500.0,0.0001299,2]
[338956031,1727089853942,-310.53815194,0.0001299,2]
[338956032,1727089853951,-500.0,0.0001299,2]
[338956033,1727089853960,-500.0,0.0001299,2]
[338956034,1727089853970,-725.04,0.0001299,2]
[338956035,1727089853979,-725.04,0.0001299,2]
[338956036,1727089853988,-500.0,0.0001299,2]
[338956037,1727089853998,-466.58483036,0.0001299,2]
[338956038,1727089854007,-500.0,0.0001299,2]
[338956039,1727089854017,-577.79533771,0.0001299,2]
[338956040,1727089854027,-501.32957816,0.0001299,2]
[338956041,1727089854036,-500.0,0.0001299,2]
[338956042,1727089854045,-487.63183766,0.0001299,2]
[338956043,1727089854054,-568.75415148,0.0001299,2]
[338956044,1727089854063,-454.90563711,0.0001299,2]
[338956045,1727089854072,-500.0,0.0001299,2]
[338956046,1727089854081,-500.0,0.0001299,2]
[338956047,1727089854091,-500.0,0.0001299,2]
[338956048,1727089854100,-500.0,0.0001299,2]
[338956049,1727089854109,-576.15,0.0001299,2]
[338956050,1727089854119,-500.0,0.0001299,2]
[338956051,1727089854131,-500.0,0.0001299,2]
[338956052,1727089854142,-500.0,0.0001299,2]
[338956053,1727089854151,-500.0,0.0001299,2]
[338956054,1727089854163,-500.0,0.0001299,2]
[338956055,1727089854174,-500.0,0.0001299,2]
[338956056,1727089854186,-500.0,0.0001299,2]
[338956057,1727089854197,-767.25,0.0001299,2]
[338956058,1727089854208,-500.0,0.0001299,2]
[338956059,1727089854218,-501.93,0.0001299,2]
[338956060,1727089854229,-532.24289289,0.0001299,2]
[338956061,1727089854240,-500.0,0.0001299,2]
[338956062,1727089854249,-916.1,0.0001299,2]
[338956063,1727089854261,-500.0,0.0001299,2]
[338956064,1727089854271,-732.55,0.0001299,2]
[338956065,1727089854282,-732.55,0.0001299,2]
[338956066,1727089854295,-500.0,0.0001299,2]
[338956067,1727089854308,-446.83587759,0.0001299,2]
[338956068,1727089854322,-500.0,0.0001299,2]
[338956069,1727089854335,-500.0,0.0001299,2]
[338956070,1727089854347,-1082.17,0.0001299,2]
[338956071,1727089854358,-498.37053839,0.0001299,2]
[338956072,1727089854370,-1042.99,0.0001299,2]
[338956073,1727089854382,-500.0,0.0001299,2]
[338956074,1727089854395,-500.0,0.0001299,2]
[338956075,1727089854407,-500.0,0.0001299,2]
[338956076,1727089854419,-500.0,0.0001299,2]
[338956077,1727089854433,-500.0,0.0001299,2]
[338956078,1727089854445,-500.0,0.0001299,2]
[338956079,1727089854457,-500.0,0.0001299,2]
[338956080,1727089854469,-500.0,0.0001299,2]
[338956081,1727089854483,-500.0,0.0001299,2]
[338956082,1727089854497,-500.0,0.0001299,2]
[338956083,1727089854510,-500.0,0.0001299,2]
[338956084,1727089854523,-536.62,0.0001299,2]
[338956085,1727089854535,-500.0,0.0001299,2]
[338956086,1727089854546,-500.0,0.0001299,2]
[338956087,1727089854558,-500.0,0.0001299,2]
[338956088,1727089854569,-500.0,0.0001299,2]
[338956089,1727089854581,-500.0,0.0001299,2]
[338956090,1727089854592,-500.0,0.0001299,2]
[338956091,1727089854605,-500.0,0.0001299,2]
[338956092,1727089854618,-500.0,0.0001299,2]
[338956093,1727089854630,-979.78,0.0001299,2]
[338956094,1727089854642,-1483.18,0.0001299,2]
[338956095,1727089854654,-625.44,0.0001299,2]
[338956096,1727089854665,-500.0,0.0001299,2]
[338956097,1727089854676,-500.0,0.0001299,2]
[338956098,1727089854687,-500.0,0.0001299,2]
[338956099,1727089854698,-500.0,0.0001299,2]
[338956100,1727089854709,-500.0,0.0001299,2]
[338956101,1727089854721,-612.97,0.0001299,2]
[338956102,1727089854733,-500.0,0.0001299,2]
[338956103,1727089854745,-500.0,0.0001299,2]
[338956104,1727089854757,-500.0,0.0001299,2]
[338956105,1727089854769,-500.0,0.0001299,2]
[338956106,1727089854780,-500.0,0.0001299,2]
[338956107,1727089854793,-500.0,0.0001299,2]
[338956108,1727089854805,-500.0,0.0001299,2]
[338956109,1727089854817,-3263.86,0.0001299,2]
[338956110,1727089854829,-500.0,0.0001299,2]
[338956111,1727089854842,-500.0,0.0001299,2]
[338956112,1727089854852,-622.53,0.0001299,2]
[338956113,1727089854863,-500.0,0.0001299,2]
[338956114,1727089854872,-500.0,0.0001299,2]
[338956115,1727089854882,-500.0,0.0001299,2]
[338956116,1727089854892,-939.79,0.0001299,2]
[338956117,1727089854903,-500.0,0.0001299,2]
[338956118,1727089854913,-515.0,0.0001299,2]
[338956119,1727089854925,-500.0,0.0001299,2]
[338956120,1727089854937,-916.85,0.0001299,2]
[338956121,1727089854949,-500.0,0.0001299,2]
[338956122,1727089854960,-500.0,0.0001299,2]
[338956123,1727089854970,-360.75,0.0001299,2]
[338956124,1727089854980,-500.0,0.0001299,2]
[338956125,1727089854992,-1228.6,0.0001299,2]
[338956126,1727089855003,-500.0,0.0001299,2]
[338956127,1727089855014,-624.43,0.0001299,2]
[338956128,1727089855026,-500.0,0.0001299,2]
[338956129,1727089855037,-530.8,0.0001299,2]
[338956130,1727089855048,-522.93,0.0001299,2]
[338956131,1727089855059,-500.0,0.0001299,2]
[338956132,1727089855069,-895.24,0.0001299,2]
[338956133,1727089855079,-500.0,0.0001299,2]
[338956134,1727089855089,-500.0,0.0001299,2]
[338956135,1727089855100,-500.0,0.0001299,2]
[338956136,1727089855111,-500.0,0.0001299,2]
[338956137,1727089855121,-1098.04,0.0001299,2]
[338956138,1727089855132,-500.0,0.0001299,2]
[338956139,1727089855142,-762.79,0.0001299,2]
[338956140,1727089855153,-500.0,0.0001299,2]
[338956141,1727089855164,-500.0,0.0001299,2]
[338956142,1727089855175,-500.0,0.0001299,2]
[338956143,1727089855186,-501.18473818,0.0001299,2]
[338956144,1727089855197,-1192.12,0.0001299,2]
[338956145,1727089855210,-611.81535832,0.0001299,2]
[338956146,1727089855221,-500.0,0.0001299,2]
[338956147,1727089855233,-988.1,0.0001299,2]
[338956148,1727089855244,-2147.93,0.0001299,2]
[338956149,1727089855257,-1002.01,0.0001299,2]
[338956150,1727089855269,-614.63,0.0001299,2]
[338956151,1727089855280,-500.0,0.0001299,2]
[338956152,1727089855292,-500.0,0.0001299,2]
[338956153,1727089855304,-338.4,0.0001299,2]
[338956154,1727089855316,-518.11,0.0001299,2]
[338956155,1727089855327,-500.0,0.0001299,2]
[338956156,1727089855339,-810.2,0.0001299,2]
[338956157,1727089855350,-1746.95,0.0001299,2]
[338956158,1727089855363,-1187.34,0.0001299,2]
[338956159,1727089855380,-500.0,0.0001299,2]
[338956160,1727089855392,-284.36,0.0001299,2]
[338956161,1727089855403,-500.0,0.0001299,2]
[338956162,1727089855414,-500.0,0.0001299,2]
[338956163,1727089855426,-500.0,0.0001299,2]
[338956164,1727089855438,-500.0,0.0001299,2]
[338956165,1727089855449,-628.32,0.0001299,2]
[338956166,1727089855459,-1542.18,0.0001299,2]
[338956167,1727089855470,-1688.58,0.0001299,2]
[338956168,1727089855483,-500.0,0.0001299,2]
[338956169,1727089855498,-4081.23,0.0001299,2]
[338956170,1727089855509,-500.0,0.0001299,2]
[338956171,1727089855521,-500.0,0.0001299,2]
[338956172,1727089855540,-730.69,0.0001299,2]
[338956173,1727089855550,-633.41,0.0001299,2]
[338956174,1727089855562,-500.0,0.0001299,2]
[338956175,1727089855575,-500.0,0.0001299,2]
[338956176,1727089855587,-2354.99,0.0001299,2]
[338956177,1727089855598,-305.6,0.0001299,2]
[338956178,1727089855608,-779.72,0.0001299,2]
[338956179,1727089855620,-941.99,0.0001299,2]
[338956180,1727089855630,-500.0,0.0001299,2]
[338956181,1727089855641,-839.9,0.0001299,2]
[338956182,1727089855652,-500.0,0.0001299,2]
[338956183,1727089855664,-688.12,0.0001299,2]
[338956184,1727089855675,-500.0,0.0001299,2]
[338956185,1727089855686,-3116.47,0.0001299,2]
[338956186,1727089855697,-2246.12,0.0001299,2]
[338956187,1727089855708,-1717.45,0.0001299,2]
[338956188,1727089855718,-1811.84,0.0001299,2]
[338956189,1727089855729,-2622.82,0.0001299,2]
[338956190,1727089855739,-1572.36,0.0001299,2]
[338956191,1727089855750,-500.0,0.0001299,2]
[338956192,1727089855762,-500.0,0.0001299,2]
[338956193,1727089855773,-500.0,0.0001299,2]
[338956194,1727089855784,-10115.12,0.0001299,2]
[338956195,1727089855794,-500.0,0.0001299,2]
[338956196,1727089855805,-605.84,0.0001299,2]
[338956197,1727089855817,-500.0,0.0001299,2]
[338956198,1727089855830,-2081.9,0.0001299,2]
[338956199,1727089855844,-500.0,0.0001299,2]
[338956200,1727089855854,-2657.57,0.0001299,2]
[338956201,1727089855867,-500.0,0.0001299,2]
[338956202,1727089855877,-1059.48,0.0001299,2]
[338956203,1727089855891,-500.0,0.0001299,2]
[338956204,1727089855902,-500.0,0.0001299,2]
[338956205,1727089855912,-500.0,0.0001299,2]
[338956206,1727089855924,-1032.78,0.0001299,2]
[338956207,1727089855936,-500.0,0.0001299,2]
[338956208,1727089855948,-500.0,0.0001299,2]
[338956209,1727089855960,-500.0,0.0001299,2]
[338956210,1727089855971,-500.0,0.0001299,2]
[338956211,1727089855982,-667.65,0.0001299,2]
[338956212,1727089855993,-500.0,0.0001299,2]
[338956213,1727089856003,-500.0,0.0001299,2]
[338956214,1727089856015,-500.0,0.0001299,2]
[338956215,1727089856027,-500.0,0.0001299,2]
[338956216,1727089856037,-500.0,0.0001299,2]
[338956217,1727089856048,-500.0,0.0001299,2]
[338956218,1727089856059,-500.0,0.0001299,2]
[338956219,1727089856069,-500.0,0.0001299,2]
[338956220,1727089856080,-500.0,0.0001299,2]
[338956221,1727089856091,-500.0,0.0001299,2]
[338956222,1727089856102,-261.59,0.0001299,2]
[338956223,1727089856114,-552.85570106,0.0001299,2]
[338956224,1727089856126,-500.0,0.0001299,2]
[338956225,1727089856137,-682.95,0.0001299,2]
[338956226,1727089856149,-529.91643648,0.0001299,2]
[338956227,1727089856160,-500.0,0.0001299,2]
[338956228,1727089856171,-2340.85,0.0001299,2]
[338956229,1727089856182,-928.92,0.0001299,2]
[338956230,1727089856192,-928.92,0.0001299,2]
[338956231,1727089856203,-500.0,0.0001299,2]
[338956232,1727089856214,-500.0,0.0001299,2]
[338956233,1727089856225,-500.0,0.0001299,2]
[338956234,1727089856236,-500.0,0.0001299,2]
[338956235,1727089856248,-1355.87,0.0001299,2]
[338956236,1727089856258,-1355.87,0.0001299,2]
[338956237,1727089856270,-500.0,0.0001299,2]
[338956238,1727089856281,-500.0,0.0001299,2]
[338956239,1727089856292,-500.0,0.0001299,2]
[338956240,1727089856304,-500.0,0.0001299,2]
[338956241,1727089856314,-263.705162,0.00012991,2]
[338956242,1727089856325,-151.0,0.00012991,2]
[338956243,1727089856335,-151.0,0.00012991,2]
[338956244,1727089856345,-500.0,0.00012991,2]
[338956245,1727089856356,-500.0,0.00012991,2]
[338956246,1727089856366,-500.0,0.00012991,2]
[338956247,1727089856376,-500.0,0.00012991,2]
[338956248,1727089856387,-542.03,0.00012991,2]
[338956249,1727089856397,-542.03,0.00012991,2]
[338956250,1727089856407,-533.0130431,0.00012991,2]
[338956251,1727089856418,-500.0,0.00012991,2]
[338956252,1727089856428,-500.0,0.00012991,2]
[338956253,1727089856439,-500.0,0.00012991,2]
[338956254,1727089856449,-478.32,0.00012991,2]
[338956255,1727089856459,-500.0,0.00012991,2]
[338956256,1727089856470,-500.0,0.00012991,2]
[338956257,1727089856481,-500.0,0.00012991,2]
[338956258,1727089856494,-500.0,0.00012991,2]
[338956259,1727089856505,-500.0,0.00012991,2]
[338956260,1727089856515,-500.0,0.00012991,2]
[338956261,1727089856526,-1170.43,0.00012991,2]
[338956262,1727089856538,-1170.43,0.00012991,2]
[338956263,1727089856549,-1167.25,0.00012991,2]
[338956264,1727089856559,-1167.25,0.00012991,2]
[338956265,1727089856572,-500.0,0.00012991,2]
[338956266,1727089856584,-500.0,0.00012991,2]
[338956267,1727089856594,-716.75,0.00012991,2]
[338956268,1727089856605,-716.75,0.00012991,2]
[338956269,1727089856616,-500.0,0.00012991,2]
[338956270,1727089856627,-500.0,0.00012991,2]
[338956271,1727089856637,-500.0,0.00012991,2]
[338956272,1727089856648,-500.0,0.00012991,2]
[338956273,1727089856659,-500.0,0.00012991,2]
[338956274,1727089856670,-500.0,0.00012991,2]
[338956275,1727089856680,-628.36,0.00012991,2]
[338956276,1727089856691,-628.36,0.00012991,2]
[338956277,1727089856702,-500.0,0.00012991,2]
[338956278,1727089856712,-500.0,0.00012991,2]
[338956279,1727089856723,-500.0,0.00012991,2]
[338956280,1727089856733,-500.0,0.00012991,2]
[338956281,1727089856744,-1534.34,0.00012991,2]
[338956282,1727089856754,-500.0,0.00012991,2]
[338956283,1727089856765,-500.0,0.00012991,2]
[338956284,1727089856776,-643.73982305,0.00012991,2]
[338956285,1727089856787,-500.0,0.00012991,2]
[338956286,1727089856797,-503.33949897,0.00012991,2]
[338956287,1727089856808,-725.04,0.00012991,2]
[338956288,1727089856819,-725.04,0.00012991,2]
[338956289,1727089856830,-416.02712346,0.00012991,2]
[338956290,1727089856841,-500.0,0.00012991,2]
[338956291,1727089856851,-500.0,0.00012991,2]
[338956292,1727089856862,-500.0,0.00012991,2]
[338956293,1727089856873,-500.0,0.00012991,2]
[338956294,1727089856883,-500.0,0.00012991,2]
[338956295,1727089856893,-500.0,0.00012991,2]
[338956296,1727089856904,-500.0,0.00012991,2]
[338956297,1727089856915,-500.0,0.00012991,2]
[338956298,1727089856926,-500.0,0.00012991,2]
[338956299,1727089856937,-576.15,0.00012991,2]
[338956300,1727089856947,-500.0,0.00012991,2]
[338956301,1727089856958,-500.0,0.00012991,2]
[338956302,1727089856968,-500.0,0.00012991,2]
[338956303,1727089856979,-500.0,0.00012991,2]
[338956304,1727089856990,-500.0,0.00012991,2]
[338956305,1727089857001,-500.0,0.00012991,2]
[338956306,1727089857012,-502.63391552,0.00012991,2]
[338956307,1727089857024,-500.0,0.00012991,2]
[338956308,1727089857035,-500.0,0.00012991,2]
[338956309,1727089857046,-500.0,0.00012991,2]
[338956310,1727089857057,-767.25,0.00012991,2]
[338956311,1727089857067,-500.0,0.00012991,2]
[338956312,1727089857078,-500.0,0.00012991,2]
[338956313,1727089857088,-501.93,0.00012991,2]
[338956314,1727089857099,-501.93,0.00012991,2]
[338956315,1727089857109,-500.0,0.00012991,2]
[338956316,1727089857120,-916.1,0.00012991,2]
[338956317,1727089857131,-916.1,0.00012991,2]
[338956318,1727089857141,-500.0,0.00012991,2]
[338956319,1727089857151,-732.55,0.00012991,2]
[338956320,1727089857160,-732.55,0.00012991,2]
[338956321,1727089857170,-500.0,0.00012991,2]
[338956322,1727089857180,-500.0,0.00012991,2]
[338956323,1727089857189,-500.0,0.00012991,2]
[338956324,1727089857198,-500.0,0.00012991,2]
[338956325,1727089857208,-354.21377124,0.00012991,2]
[338956326,1727089857218,-1082.17,0.00012991,2]
[338956327,1727089857228,-1042.99,0.00012991,2]
[338956328,1727089857238,-500.0,0.00012991,2]
[338956329,1727089857247,-500.0,0.00012991,2]
[338956330,1727089857257,-500.0,0.00012991,2]
[338956331,1727089857268,-500.0,0.00012991,2]
[338956332,1727089857278,-500.0,0.00012991,2]
[338956333,1727089857288,-361.16751057,0.00012991,2]
[338956334,1727089857298,-500.0,0.00012991,2]
[338956335,1727089857308,-500.0,0.00012991,2]
[338956336,1727089857318,-500.0,0.00012991,2]
[338956337,1727089857328,-500.0,0.00012991,2]
[338956338,1727089857338,-500.0,0.00012991,2]
[338956339,1727089857349,-500.0,0.00012991,2]
[338956340,1727089857359,-500.0,0.00012991,2]
[338956341,1727089857369,-536.62,0.00012991,2]
[338956342,1727089857379,-500.0,0.00012991,2]
[338956343,1727089857390,-500.0,0.00012991,2]
[338956344,1727089857400,-536.62,0.00012991,2]
[338956345,1727089857410,-500.0,0.00012991,2]
[338956346,1727089857419,-500.0,0.00012991,2]
[338956347,1727089857429,-500.0,0.00012991,2]
[338956348,1727089857439,-500.0,0.00012991,2]
[338956349,1727089857449,-500.0,0.00012991,2]
[338956350,1727089857459,-500.0,0.00012991,2]
[338956351,1727089857469,-500.0,0.00012991,2]
[338956352,1727089857478,-979.78,0.00012991,2]
[338956353,1727089857488,-979.78,0.00012991,2]
[338956354,1727089857499,-1483.18,0.00012991,2]
[338956355,1727089857510,-500.0,0.00012991,2]
[338956356,1727089857528,-500.0,0.00012991,2]
[338956357,1727089857537,-563.04,0.00012991,2]
[338956358,1727089857547,-500.0,0.00012991,2]
[338956359,1727089857559,-500.0,0.00012991,2]
[338956360,1727089857569,-500.0,0.00012991,2]
[338956361,1727089858010,-612.97,0.00012991,2]
[338956362,1727089858023,-612.97,0.00012991,2]
[338956363,1727089858034,-500.0,0.00012991,2]
[338956364,1727089858044,-500.0,0.00012991,2]
[338956365,1727089858053,-500.0,0.00012991,2]
[338956366,1727089858063,-500.0,0.00012991,2]
[338956367,1727089858074,-500.0,0.00012991,2]
[338956368,1727089858083,-500.0,0.00012991,2]
[338956369,1727089858093,-500.0,0.00012991,2]
[338956370,1727089858103,-3263.86,0.00012991,2]
[338956371,1727089858113,-500.0,0.00012991,2]
[338956372,1727089858123,-500.0,0.00012991,2]
[338956373,1727089858132,-500.0,0.00012991,2]
[338956374,1727089858142,-150.64022146,0.00012991,2]
[338956375,1727089858152,-500.0,0.00012991,2]
[338956376,1727089858162,-500.0,0.00012991,2]
[338956377,1727089858171,-500.0,0.00012991,2]
[338956378,1727089858180,-939.79,0.00012991,2]
[338956379,1727089858190,-500.0,0.00012991,2]
[338956380,1727089858200,-500.0,0.00012991,2]
[338956381,1727089858209,-515.0,0.00012991,2]
[338956382,1727089858219,-515.0,0.00012991,2]
[338956383,1727089858228,-550.63,0.00012991,2]
[338956384,1727089858238,-916.85,0.00012991,2]
[338956385,1727089858247,-500.0,0.00012991,2]
[338956386,1727089858257,-500.0,0.00012991,2]
[338956387,1727089858267,-500.0,0.00012991,2]
[338956388,1727089858277,-500.0,0.00012991,2]
[338956389,1727089858286,-1228.6,0.00012991,2]
[338956390,1727089858295,-500.0,0.00012991,2]
[338956391,1727089858305,-624.43,0.00012991,2]
[338956392,1727089858315,-624.43,0.00012991,2]
[338956393,1727089858324,-500.0,0.00012991,2]
[338956394,1727089858335,-530.8,0.00012991,2]
[338956395,1727089858345,-530.8,0.00012991,2]
[338956396,1727089858355,-522.93,0.00012991,2]
[338956397,1727089858365,-500.0,0.00012991,2]
[338956398,1727089858375,-500.0,0.00012991,2]
[338956399,1727089858384,-895.24,0.00012991,2]
[338956400,1727089858393,-895.24,0.00012991,2]
[338956401,1727089858402,-5198.8341524,0.00012991,2]
[338956402,1727089858412,-5744.2051162,0.00012991,2]
[338956403,1727089858422,-500.0,0.00012991,2]
[338956404,1727089858431,-6289.57608,0.00012991,2]
[338956405,1727089858441,-6834.9470438,0.00012991,2]
[338956406,1727089858451,-500.0,0.00012991,2]
[338956407,1727089858460,-7380.3180076,0.00012991,2]
[338956408,1727089858470,-500.0,0.00012991,2]
[338956409,1727089858479,-500.0,0.00012991,2]
[338956410,1727089858489,-500.0,0.00012991,2]
[338956411,1727089858498,-1098.04,0.00012991,2]
[338956412,1727089858510,-364.64632689,0.00012991,2]
[338956413,1727089858520,-762.79,0.00012991,2]
[338956414,1727089858530,-577.05733267,0.00012991,2]
[338956415,1727089858539,-23924.964936,0.00012991,2]
[338956416,1727089858549,-500.0,0.00012991,2]
[338956417,1727089858560,-430.05,0.00012991,2]
[338956418,1727089858569,-1192.12,0.00012991,2]
[338956419,1727089858579,-1192.12,0.00012991,2]
[338956420,1727089858590,-500.0,0.00012991,2]
[338956421,1727089858599,-500.0,0.00012991,2]
[338956422,1727089858609,-988.1,0.00012991,2]
[338956423,1727089858618,-2147.93,0.00012991,2]
[338956424,1727089858628,-10586.9169641,0.00012991,2]
[338956425,1727089858638,-9125.5409609,0.00012991,2]
[338956426,1727089858648,-7664.1649577,0.00012991,2]
[338956427,1727089858657,-6202.7889546,0.00012991,2]
[338956428,1727089858667,-4741.4129514,0.00012991,2]